bitfinex/quotes_SOLUSD_20240912
["timestamp","ask_amount","ask_price","bid_price","bid_amount"]
[1726157194612,2.11542979,134.13,134.09,20.0]
[1726157194800,0.12549,134.12,134.07,20.0]
[1726157194997,23.902374,134.12,134.05,23.45625817]
[1726157195191,1.86474075,134.11,134.05,23.45625817]
[1726157195394,1.86473988,134.1,134.05,23.45625817]
[1726157195902,23.902374,134.12,134.05,23.45625817]
[1726157196300,23.902374,134.12,134.03,15.3952]
[1726157196301,0.12549,134.12,134.07,23.45625817]
[1726157197521,1.99002871,134.12,134.07,23.45625817]
[1726157199618,15.6287507,134.13,134.08,20.0]
[1726157200014,0.2510507,134.13,134.09,23.45625817]
[1726157202413,0.2510507,134.13,134.04,20.0]
[1726157202634,0.2510507,134.13,134.08,20.0]
[1726157204542,0.2510507,134.13,134.09,23.45625817]
[1726157205321,0.2510507,134.13,134.11,23.45625817]
[1726157211043,0.2510507,134.13,134.09,43.45625817]
[1726157212124,0.2510507,134.13,134.11,23.45625817]
[1726157213350,0.2510507,134.13,134.12,20.0]
[1726157214639,0.2510507,134.13,134.08,15.8756]
[1726157214640,0.2510507,134.13,134.09,43.45625817]
[1726157219152,0.2510507,134.13,134.12,20.0]
[1726157224360,0.2510507,134.13,134.12,14.96740125]
[1726157224662,0.2510507,134.13,134.12,34.96740125]
[1726157228851,0.2510507,134.17,134.13,20.0]
[1726157229063,0.2510507,134.17,134.16,14.96740125]
[1726157232377,0.2510507,134.17,134.14,14.96740125]
[1726157232559,23.902374,134.16,134.09,20.0]
[1726157232759,46.158584,134.14,134.05,19.2153813]
[1726157232962,1.86441806,134.13,134.08,14.96740125]
[1726157233202,1.86441806,134.13,134.05,16.2407]
[1726157233203,23.902374,134.12,134.05,16.2407]
[1726157233487,23.902374,134.12,134.03,0.2510507]
[1726157233488,1.86471843,134.11,134.07,14.96740125]
[1726157233690,0.25098,134.12,134.07,14.96740125]
[1726157233980,23.776884,134.11,134.03,0.2510507]
[1726157234160,1.99028449,134.1,134.04,23.4140043]
[1726157234483,1.86479449,134.09,134.05,20.0]
[1726157235688,1.86481858,134.08,134.05,20.0]
[1726157235863,1.86499235,134.07,134.03,0.2510507]
[1726157236065,23.776884,134.09,134.03,0.2510507]
[1726157236261,1.99050839,134.08,134.03,0.2510507]
[1726157236476,1.86512697,134.07,134.03,0.2510507]
[1726157236779,0.12549,134.06,134.03,0.2510507]
[1726157236987,23.776884,134.05,134.03,0.2510507]
[1726157237154,0.12549,134.06,134.03,0.2510507]
[1726157237784,0.25098,134.06,134.03,0.2510507]
[1726157238493,0.12549,134.06,134.03,0.2510507]
[1726157238663,1.99086536,134.06,134.03,0.2510507]
[1726157239276,23.902374,134.05,134.03,0.2510507]
[1726157239659,1.99103272,134.04,134.03,0.2510507]
[1726157240157,0.12549,134.05,134.03,0.2510507]
[1726157240369,23.776884,134.07,134.03,0.2510507]
[1726157240567,0.25098,134.06,134.03,0.2510507]
[1726157241666,0.12549,134.06,134.03,0.2510507]
[1726157242189,1.99085846,134.06,134.03,0.2510507]
[1726157242687,0.12549,134.06,134.03,0.2510507]
[1726157243871,1.99085757,134.06,134.03,0.2510507]
[1726157246580,23.776884,134.05,134.03,0.2510507]
[1726157246782,25.89356453,134.04,134.03,0.2510507]
[1726157246965,48.78706453,134.04,134.03,0.2510507]
[1726157247881,55.50146453,134.04,134.03,0.2510507]
[1726157248278,48.78706453,134.04,134.03,0.2510507]
[1726157248607,48.78742351,134.04,134.03,0.2510507]
[1726157249703,55.50182351,134.04,134.03,0.2510507]
[1726157249890,48.78742351,134.04,134.03,0.2510507]
[1726157250610,46.921364,134.04,134.03,0.2510507]
[1726157250905,48.78742274,134.04,134.03,0.2510507]
[1726157251405,23.776884,134.03,133.99,0.2510507]
[1726157251583,2.1173191,134.02,133.99,0.2510507]
[1726157251783,1.86629608,134.01,133.99,0.2510507]
[1726157251978,24.027864,134.0,133.99,0.2510507]
[1726157253416,0.25098,134.0,133.99,0.2510507]
[1726157253623,0.12549,134.0,133.99,0.2510507]
[1726157254115,22.8935,134.04,133.99,0.2510507]
[1726157254312,23.776884,134.02,133.99,0.2510507]
[1726157254482,1.99143822,134.01,133.99,0.2510507]
[1726157255211,0.12549,134.01,133.99,0.2510507]
[1726157255592,1.99143011,134.01,133.99,0.2510507]
[1726157257594,23.902374,134.0,133.99,0.2510507]
[1726157257801,24.027864,134.0,133.99,0.2510507]
[1726157259319,23.902374,134.0,133.99,0.2510507]
[1726157259621,23.776884,134.0,133.99,0.2510507]
[1726157259793,23.776884,134.01,133.99,0.2510507]
[1726157260117,1.86610428,134.0,133.99,0.2510507]
[1726157260814,23.776884,134.01,133.99,0.2510507]
[1726157261020,0.12549,134.0,133.99,0.2510507]
[1726157262422,1.866,134.01,133.99,0.2510507]
[1726157263507,25.64276698,134.03,133.99,0.2510507]
[1726157263709,0.12549,134.02,133.99,0.2510507]
[1726157263907,1.99134347,134.02,133.99,0.2510507]
[1726157266006,23.776884,134.01,133.99,0.2510507]
[1726157266203,1.9915739,134.0,133.99,0.2510507]
[1726157267024,23.776884,134.03,133.99,0.2510507]
[1726157267321,0.25098,134.02,133.99,0.2510507]
[1726157268226,0.12549,134.02,133.99,0.2510507]
[1726157268612,1.99133861,134.02,133.99,0.2510507]
[1726157272898,23.776884,134.01,133.99,0.2510507]
[1726157273106,25.76859082,134.0,133.99,0.2510507]
[1726157273413,25.89408082,134.0,133.99,0.2510507]
[1726157273848,32.51798082,134.0,133.99,0.2510507]
[1726157276804,54.95798082,134.0,133.99,0.2510507]
[1726157280426,54.83249082,134.0,133.99,0.2510507]
[1726157280631,8.49011682,134.0,133.99,0.2510507]
[1726157281822,32.51798082,134.0,133.99,0.2510507]
[1726157282135,77.14328082,134.0,133.99,0.2510507]
[1726157283950,77.14328082,134.0,133.99,0.1255607]
[1726157284128,97.14328082,134.0,133.99,0.1255607]
[1726157286348,97.14328082,134.0,133.99,7.07e-05]
[1726157287244,73.11541682,134.0,133.99,7.07e-05]
[1726157287444,53.11541682,134.0,133.99,7.07e-05]
[1726157288824,77.14328082,134.0,133.99,7.07e-05]
[1726157289533,77.14404249,134.0,133.99,7.07e-05]
[1726157291331,84.96172089,134.0,133.99,7.07e-05]
[1726157291957,60.93385689,134.0,133.99,7.07e-05]
[1726157293259,84.96172089,134.0,133.99,7.07e-05]
[1726157295074,77.14404249,134.0,133.99,7.07e-05]
[1726157295371,84.95994677,134.0,133.99,7.07e-05]
[1726157296237,9.68288277,134.0,133.99,7.07e-05]
[1726157296440,1.86697849,134.0,133.99,7.07e-05]
[1726157296939,31.02337849,134.0,133.99,7.07e-05]
[1726157297438,54.80026249,134.0,133.99,7.07e-05]
[1726157297640,55.05124249,134.0,133.99,7.07e-05]
[1726157302045,75.05124249,134.0,133.99,7.07e-05]
[1726157302347,75.05124249,134.0,133.95,0.2510507]
[1726157302348,6.7184,133.96,133.95,0.2510507]
[1726157302554,8.83652475,133.96,133.95,0.2510507]
[1726157303064,2.11812475,133.96,133.95,0.2510507]
[1726157303659,31.27652475,133.96,133.95,0.2510507]
[1726157304572,55.05340875,133.96,133.95,0.2510507]
[1726157304776,48.33500875,133.96,133.95,0.2510507]
[1726157305440,24.027864,133.96,133.95,0.2510507]
[1726157306065,25.8949439,133.96,133.95,0.2510507]
[1726157307770,32.6133439,133.96,133.95,0.2510507]
[1726157307951,25.8949439,133.96,133.95,0.2510507]
[1726157309478,6.7159,134.01,133.95,0.2510507]
[1726157309777,24.30648388,134.0,133.95,0.2510507]
[1726157309958,22.44,133.99,133.95,0.2510507]
[1726157310160,31.02450835,133.98,133.95,0.2510507]
[1726157310986,24.027864,133.97,133.95,0.2510507]
[1726157311181,25.64379907,133.96,133.95,0.2510507]
[1726157311400,25.89477907,133.96,133.95,0.2510507]
[1726157311877,24.027864,133.96,133.95,0.2510507]
[1726157312375,25.89493489,133.96,133.95,0.2510507]
[1726157312586,24.027864,133.96,133.95,0.2510507]
[1726157312967,25.8949195,133.96,133.95,0.2510507]
[1726157313173,24.027864,133.96,133.95,0.2510507]
[1726157313480,0.12549,133.96,133.95,0.2510507]
[1726157313863,1.99213841,133.99,133.95,0.2510507]
[1726157314056,1.86659799,133.98,133.95,0.2510507]
[1726157314966,23.902374,133.97,133.95,0.2510507]
[1726157315361,25.7689731,133.96,133.95,0.2510507]
[1726157315571,25.8944631,133.96,133.95,0.2510507]
[1726157316366,24.027864,133.96,133.95,0.2510507]
[1726157319169,25.8947022,133.96,133.95,0.2510507]
[1726157319986,24.027864,133.96,133.95,0.2510507]
[1726157320186,25.89490049,133.96,133.95,0.2510507]
[1726157321182,24.027864,133.96,133.95,0.2510507]
[1726157323180,1.86678648,134.01,133.95,0.2510507]
[1726157323368,1.86678648,134.01,133.96,15.0213095]
[1726157323776,1.86678648,134.01,133.95,0.2510507]
[1726157323777,8.58288648,134.01,133.95,0.2510507]
[1726157323978,1.86678648,134.01,133.95,15.2723602]
[1726157324180,35.2116,134.02,133.95,15.2723602]
[1726157324385,1.86637221,134.01,133.95,15.2723602]
[1726157324690,0.12549,134.0,133.95,15.2723602]
[1726157324902,0.12549,134.0,133.97,15.0213095]
[1726157325189,0.12549,134.01,133.97,15.0213095]
[1726157325366,1.86611229,134.03,133.97,15.0213095]
[1726157326889,113.9,134.04,133.99,15.0213095]
[1726157327100,1.86611285,134.02,133.97,15.0213095]
[1726157327267,1.86609242,134.01,133.97,15.0213095]
[1726157328177,23.776884,134.03,133.97,15.0213095]
[1726157328397,0.25098,134.02,133.97,15.0213095]
[1726157328896,23.776884,134.01,133.97,15.0213095]
[1726157329098,0.12549,134.0,133.97,15.0213095]
[1726157330078,1.99157741,134.0,133.97,15.0213095]
[1726157330798,0.12549,134.0,133.97,15.0213095]
[1726157331616,0.12549,134.0,133.99,15.0213095]
[1726157332100,0.12549,134.02,133.99,15.0213095]
[1726157332281,0.25098,134.02,133.99,15.0213095]
[1726157332477,2.11684848,134.02,133.99,15.0213095]
[1726157333005,0.25098,134.02,133.99,15.0213095]
[1726157337210,23.776884,134.01,133.99,15.0213095]
[1726157337397,0.25098,134.02,133.99,15.0213095]
[1726157341208,0.25098,134.02,133.99,30.0764095]
[1726157345895,0.12549,134.02,133.99,30.0764095]
[1726157348317,21.00501924,134.08,134.01,15.0213095]
[1726157348516,24.3054983,134.07,134.01,15.0213095]
[1726157348721,16.7782,134.11,133.99,15.0551]
[1726157348722,12.8386,134.11,134.03,15.0213095]
[1726157349021,12.8386,134.11,134.05,15.0213095]
[1726157349694,22.44,134.1,134.05,15.0213095]
[1726157349899,1.86513379,134.1,134.05,15.0213095]
[1726157350109,6.1277,134.11,134.05,15.0213095]
[1726157350110,2.11618449,134.09,134.05,15.0213095]
[1726157350694,0.2510507,134.09,134.05,15.0213095]
[1726157351621,23.776884,134.08,134.05,15.0213095]
[1726157351800,1.86507792,134.07,134.04,15.1147]
[1726157352003,25.64206803,134.06,134.02,6.0819]
[1726157352312,25.64206803,134.06,134.02,15.0213095]
[1726157352614,23.776884,134.06,134.04,15.0213095]
[1726157353399,23.776884,134.06,134.02,20.0]
[1726157353695,6.9633507,134.09,134.02,35.0213095]
[1726157353696,23.776884,134.04,134.02,35.0213095]
[1726157354428,1.86533063,134.08,134.02,35.0213095]
[1726157354622,25.89320023,134.07,134.02,35.0213095]
[1726157355118,25.89320023,134.07,134.02,15.0213095]
[1726157357814,48.33320023,134.07,134.02,15.0213095]
[1726157359026,55.04620023,134.07,134.01,15.2375]
[1726157359807,6.7136,134.06,134.01,15.2375]
[1726157360005,24.027864,134.05,134.01,15.2375]
[1726157360615,0.25098,134.05,134.01,15.2375]
[1726157361121,1.86540896,134.05,134.02,15.0213095]
[1726157361320,22.44,134.08,134.02,15.0213095]
[1726157361513,1.86539249,134.07,134.02,15.0213095]
[1726157362323,23.902374,134.06,134.02,15.0213095]
[1726157365030,23.776884,134.06,134.02,15.0213095]
[1726157365543,2.1161885,134.09,134.04,15.0213095]
[1726157365709,24.027864,134.08,134.04,15.0213095]
[1726157366012,1.86509594,134.07,134.04,15.0213095]
[1726157366415,24.027864,134.08,134.04,15.0213095]
[1726157366633,2.11606816,134.09,134.04,15.0213095]
[1726157366825,1.86492823,134.08,134.04,15.0213095]
[1726157367733,25.76730105,134.07,134.04,15.0213095]
[1726157367933,25.76730105,134.07,134.02,15.0213095]
[1726157368116,25.76730105,134.07,134.01,15.2375]
[1726157368117,0.12549,134.06,134.01,15.2375]
[1726157368308,1.99090152,134.06,134.02,35.0213095]
[1726157368509,0.12549,134.07,134.02,35.0213095]
[1726157368733,0.25098,134.07,134.02,35.0213095]
[1726157369040,23.776884,134.06,134.02,35.0213095]
[1726157369332,0.25098,134.05,134.02,35.0213095]
[1726157373318,0.25098,134.05,134.02,35.0213095]
[1726157376146,23.776884,134.04,134.02,35.0213095]
[1726157376637,1.86539101,134.03,134.01,15.2375]
[1726157376954,1.86539101,134.03,134.01,20.0]
[1726157377315,1.86539101,134.03,133.98,15.9232]
[1726157377515,1.86539101,134.03,134.0,15.0213095]
[1726157379727,24.027864,134.02,133.95,16.7036507]
[1726157379933,1.86583478,134.01,133.98,15.0213095]
[1726157381240,24.027864,134.02,133.98,15.0213095]
[1726157381826,1.8656424,134.05,134.0,15.0213095]
[1726157382026,25.76797125,134.04,134.0,15.0213095]
[1726157382326,28.6826,134.06,134.02,15.0213095]
[1726157382327,8.10816132,134.06,134.02,15.0213095]
[1726157382539,6.2426,134.06,134.02,15.0213095]
[1726157382959,1.86542502,134.05,134.02,15.0213095]
[1726157383336,6.2426,134.06,134.02,15.0213095]
[1726157383644,24.027864,134.05,134.02,15.0213095]
[1726157384031,23.776884,134.07,134.04,15.0213095]
[1726157384260,0.12549,134.06,134.04,15.0213095]
[1726157390170,23.776884,134.05,134.02,15.0213095]
[1726157390370,2.11613826,134.06,134.02,15.0213095]
[1726157390573,23.776884,134.05,134.02,15.0213095]
[1726157392370,1.99077726,134.04,134.02,15.0213095]
[1726157392556,23.776884,134.03,134.01,20.0]
[1726157393484,23.776884,134.03,134.02,15.0213095]
[1726157395167,1.99100244,134.06,134.02,15.0213095]
[1726157395376,23.776884,134.05,134.02,15.0213095]
[1726157397897,46.216884,134.05,133.96,16.5063]
[1726157398057,23.776884,134.03,133.96,16.5063]
[1726157398254,23.776884,134.01,133.98,15.0213095]
[1726157398868,1.86586185,134.0,133.98,15.0213095]
[1726157399277,23.776884,134.01,133.98,15.0213095]
[1726157399468,0.12549,134.0,133.98,15.0213095]
[1726157400667,1.99146108,134.0,133.98,15.0213095]
[1726157401690,1.86597108,134.0,133.98,15.0213095]
[1726157402257,1.86597108,134.0,133.96,16.5063]
[1726157402258,1.86597108,134.0,133.97,20.0]
[1726157402676,23.776884,133.99,133.97,20.0]
[1726157403186,23.776884,134.0,133.97,20.0]
[1726157403387,1.86608693,133.99,133.97,20.0]
[1726157403587,0.12549,134.01,133.97,20.0]
[1726157403588,23.902374,134.01,133.97,20.0]
[1726157403786,23.776884,133.99,133.97,20.0]
[1726157404966,15.9953,134.03,133.97,20.0]
[1726157405166,23.902374,134.02,133.97,20.0]
[1726157405376,24.027864,134.02,133.98,15.0213095]
[1726157406191,23.776884,134.02,133.98,15.0213095]
[1726157406901,23.776884,134.03,133.97,20.0]
[1726157407197,1.86566686,134.04,133.97,35.0213095]
[1726157407198,23.776884,134.01,133.97,35.0213095]
[1726157407371,1.99149039,134.0,133.97,35.0213095]
[1726157409895,1.86600039,134.0,133.97,35.0213095]
[1726157410197,23.776884,134.01,133.97,35.0213095]
[1726157411003,22.44,134.04,133.99,15.0213095]
[1726157411004,1.86582684,134.04,133.99,15.0213095]
[1726157411202,1.86542403,134.07,134.01,15.0213095]
[1726157411391,1.86542403,134.05,134.01,15.0213095]
[1726157411587,6.2711,134.08,134.01,15.0213095]
[1726157412074,1.86536744,134.07,134.01,15.0213095]
[1726157412601,24.027864,134.06,134.01,15.0213095]
[1726157413490,0.25098,134.06,134.01,15.0213095]
[1726157415189,23.776884,134.04,134.0,20.0]
[1726157415423,23.776884,134.04,134.01,15.0213095]
[1726157415688,23.776884,134.05,134.01,15.0213095]
[1726157415886,1.86536715,134.04,134.01,15.0213095]
[1726157416093,23.776884,134.05,134.01,15.0213095]
[1726157416493,1.86536725,134.04,134.01,15.0213095]
[1726157417815,25.64225136,134.05,134.03,15.0213095]
[1726157418111,25.64225136,134.05,134.01,15.0213095]
[1726157418428,1.86537089,134.04,134.01,15.0213095]
[1726157418619,25.64225453,134.05,134.01,15.0213095]
[1726157419206,1.8653673,134.04,134.01,15.0213095]
[1726157419604,25.64225119,134.05,134.01,15.0213095]
[1726157419812,1.86536714,134.04,134.01,15.0213095]
[1726157420012,23.776884,134.05,134.01,15.0213095]
[1726157420013,25.64225114,134.05,134.01,15.0213095]
[1726157420393,1.86536707,134.04,134.01,15.0213095]
[1726157420593,23.776884,134.03,134.01,15.0213095]
[1726157421205,23.776884,134.03,133.97,20.0]
[1726157421529,23.776884,134.03,134.0,15.0213095]
[1726157421730,0.12549,134.06,134.02,15.0213095]
[1726157421897,24.027864,134.06,134.02,15.0213095]
[1726157423394,6.2711,134.08,134.04,15.0213095]
[1726157423626,1.86513496,134.07,134.04,15.0213095]
[1726157426221,8.13615918,134.08,134.04,15.0213095]
[1726157426429,0.2510507,134.09,134.06,15.0213095]
[1726157426615,0.2510507,134.09,134.08,15.0213095]
[1726157427936,0.2510507,134.09,134.02,20.0]
[1726157428233,0.2510507,134.09,134.05,15.0213095]
[1726157428436,23.776884,134.08,134.05,15.0213095]
[1726157430607,0.3765407,134.09,134.07,15.0213095]
[1726157431516,0.2510507,134.09,134.07,15.0213095]
[1726157439241,0.2510507,134.09,134.02,20.0]
[1726157439448,24.0279347,134.09,134.06,15.0213095]
[1726157439749,1.86472225,134.08,134.06,15.0213095]
[1726157440044,0.2510507,134.09,134.06,15.0213095]
[1726157440249,2.11572731,134.09,134.06,15.0213095]
[1726157442741,0.2510507,134.09,134.06,15.0213095]
[1726157443658,0.2510507,134.09,134.08,15.0213095]
[1726157451352,0.2510507,134.09,134.06,15.0213095]
[1726157451645,0.2510507,134.09,134.07,20.0]
[1726157455670,0.2510507,134.09,134.08,15.0213095]
[1726157456970,0.2510507,134.09,134.02,20.0]
[1726157457192,0.2510507,134.09,134.07,15.0213095]
[1726157457471,0.2510507,134.09,134.07,20.0]
[1726157460664,0.2510507,134.09,134.08,15.0213095]
[1726157463076,0.2510507,134.09,134.06,15.0213095]
[1726157463257,24.0279347,134.09,134.07,20.0]
[1726157464061,0.2510507,134.09,134.08,15.0213095]
[1726157464980,0.2510507,134.09,134.08,35.0213095]
[1726157466389,0.2510507,134.13,134.08,35.0213095]
[1726157466597,0.2510507,134.13,134.05,15.1094]
[1726157466598,0.2510507,134.13,134.11,15.0213095]
[1726157472909,0.2510507,134.13,134.1,15.0213095]
[1726157473108,0.2510507,134.13,134.09,35.0213095]
[1726157474613,24.0279347,134.13,134.09,35.0213095]
[1726157475002,0.2510507,134.13,134.06,20.0]
[1726157475189,0.2510507,134.13,134.12,15.0213095]
[1726157476496,0.2510507,134.13,134.12,35.0213095]
[1726157477813,0.2510507,134.13,134.12,20.0]
[1726157478005,0.2510507,134.13,134.11,15.0213095]
[1726157478406,0.2510507,134.13,134.09,15.0213095]
[1726157478612,24.0279347,134.13,134.09,15.0213095]
[1726157478916,1.86420401,134.12,134.09,15.0213095]
[1726157479222,1.86420401,134.12,134.07,15.0213095]
[1726157479402,30.4124347,134.13,134.07,15.0213095]
[1726157479603,0.12549,134.12,134.07,15.0213095]
[1726157480304,0.12549,134.12,134.08,20.0]
[1726157483620,0.12549,134.12,134.09,15.0213095]
[1726157483827,30.4124347,134.13,134.09,15.0213095]
[1726157484623,23.776884,134.11,134.06,20.0]
[1726157484935,23.776884,134.12,134.06,35.0213095]
[1726157485100,23.776884,134.12,134.08,15.0213095]
[1726157485613,25.6411663,134.12,134.08,15.0213095]
[1726157486431,23.776884,134.12,134.08,15.0213095]
[1726157487526,23.776884,134.1,134.06,20.0]
[1726157487707,23.776884,134.1,134.06,35.0213095]
[1726157487903,0.25098,134.11,134.06,35.0213095]
[1726157488242,24.027864,134.12,134.06,35.0213095]
[1726157488410,25.89230219,134.12,134.06,35.0213095]
[1726157488923,24.027864,134.12,134.06,35.0213095]
[1726157489705,25.76666925,134.12,134.08,15.0213095]
[1726157489908,23.902374,134.12,134.08,15.0213095]
[1726157491937,23.776884,134.12,134.08,15.0213095]
[1726157492725,8.4998644,134.13,134.08,15.0213095]
[1726157492930,6.6355507,134.13,134.08,15.0213095]
[1726157493233,23.902374,134.12,134.08,15.0213095]
[1726157496018,6.6355507,134.13,134.08,15.0213095]
[1726157496738,0.2510507,134.13,134.1,15.0213095]
[1726157496941,0.2510507,134.13,134.12,15.0213095]
[1726157497314,0.2510507,134.13,134.12,35.0213095]
[1726157498121,0.2510507,134.17,134.16,15.0213095]
[1726157498337,0.2510507,134.17,134.14,15.0213095]
[1726157501150,2.11439098,134.17,134.08,20.0]
[1726157501322,2.11439098,134.17,134.14,20.0]
[1726157501732,0.2510507,134.17,134.14,20.0]
[1726157501935,23.776884,134.16,134.08,20.0]
[1726157502116,23.776884,134.16,134.13,15.0213095]
[1726157502316,23.776884,134.16,134.14,20.0]
[1726157502824,0.12549,134.15,134.11,15.0213095]
[1726157503832,0.12549,134.15,134.12,20.0]
[1726157504330,0.2510507,134.17,134.13,15.0213095]
[1726157504650,0.2510507,134.17,134.15,15.0213095]
[1726157506523,0.2510507,134.17,134.14,20.0]
[1726157507436,0.2510507,134.17,134.13,15.0213095]
[1726157507437,23.776884,134.16,134.13,15.0213095]
[1726157507744,0.12549,134.15,134.13,15.0213095]
[1726157509139,23.776884,134.16,134.13,15.0213095]
[1726157509343,26.01716582,134.17,134.13,15.0213095]
[1726157509540,0.3765407,134.17,134.13,15.0213095]
[1726157510340,0.2510507,134.17,134.15,15.0213095]
[1726157514957,0.2510507,134.17,134.07,25.35416831]
[1726157514958,0.2510507,134.17,134.08,20.0]
[1726157515147,0.2510507,134.17,134.14,15.0213095]
[1726157516373,2.11451159,134.17,134.13,15.0213095]
[1726157516570,23.776884,134.16,134.13,15.0213095]
[1726157516871,0.2510507,134.17,134.13,15.0213095]
[1726157517167,2.11459683,134.17,134.13,15.0213095]
[1726157517671,23.776884,134.16,134.13,20.0]
[1726157518777,0.2510507,134.17,134.14,15.0213095]
[1726157518975,0.2510507,134.17,134.15,20.0]
[1726157519165,0.2510507,134.17,134.16,15.0213095]
[1726157519358,0.2510507,134.17,134.16,35.0213095]
[1726157520182,0.2510507,134.17,134.14,15.0213095]
[1726157520374,0.2510507,134.17,134.15,20.0]
[1726157521070,2.11449194,134.17,134.14,15.0213095]
[1726157521786,2.11449194,134.17,134.12,15.0213095]
[1726157522094,23.776884,134.16,134.08,15.5333]
[1726157522393,2.11449194,134.17,134.11,15.0213095]
[1726157522394,2.11496275,134.17,134.11,15.0213095]
[1726157522682,23.902374,134.16,134.11,15.0213095]
[1726157523187,0.12549,134.16,134.11,15.0213095]
[1726157523365,0.12549,134.16,134.12,20.0]
[1726157524469,25.89179499,134.17,134.12,20.0]
[1726157526199,25.89179499,134.17,134.13,15.0213095]
[1726157527292,24.0279347,134.17,134.13,15.0213095]
[1726157527492,0.2510507,134.17,134.13,15.0213095]
[1726157531669,0.2510507,134.17,134.14,20.0]
[1726157533102,0.2510507,134.17,134.15,15.0213095]
[1726157537470,0.2510507,134.17,134.16,20.0]
[1726157537695,0.2510507,134.17,134.16,35.0213095]
[1726157537991,0.2510507,134.17,134.13,35.0213095]
[1726157540599,23.776884,134.16,134.09,20.0]
[1726157540802,23.776884,134.16,134.13,20.0]
[1726157543500,23.776884,134.16,134.09,20.0]
[1726157543700,23.776884,134.16,134.13,20.0]
[1726157545173,23.776884,134.16,134.12,15.0213095]
[1726157545376,25.64074825,134.16,134.12,15.0213095]
[1726157547081,23.776884,134.16,134.12,15.0213095]
[1726157547406,0.12549,134.15,134.12,15.0213095]
[1726157547705,23.776884,134.14,134.11,20.0]
[1726157548412,23.776884,134.14,134.05,15.4172]
[1726157548413,1.86401126,134.13,134.05,15.4172]
[1726157548615,30.428384,134.12,134.05,15.4172]
[1726157548803,30.428384,134.12,134.06,15.0213095]
[1726157548986,30.428384,134.12,134.08,15.0213095]
[1726157549284,15.1509,134.13,134.1,15.0213095]
[1726157549484,23.776884,134.14,134.1,15.0213095]
[1726157549695,6.6515,134.15,134.12,15.0213095]
[1726157549894,15.1509,134.16,134.12,15.0213095]
[1726157550115,0.2510507,134.17,134.12,15.0213095]
[1726157550415,0.2510507,134.17,134.14,15.0213095]
[1726157552507,24.0279347,134.17,134.14,15.0213095]
[1726157552808,25.89154417,134.17,134.14,15.0213095]
[1726157553592,25.89154417,134.17,134.13,20.0]
[1726157553913,0.25098,134.16,134.13,20.0]
[1726157554300,0.25098,134.16,134.12,20.0]
[1726157555287,24.0279347,134.17,134.12,20.0]
[1726157555490,24.0279347,134.17,134.13,15.0213095]
[1726157556789,25.89147283,134.17,134.13,15.0213095]
[1726157558486,25.89147283,134.17,134.1,20.0]
[1726157558487,0.2510507,134.17,134.15,15.0213095]
[1726157577541,0.2510507,134.17,134.16,20.0]
[1726157577935,0.2510507,134.21,134.16,20.0]
[1726157578140,0.2510507,134.21,134.2,15.0213095]
[1726157578453,0.2510507,134.21,134.2,35.0213095]
[1726157578961,0.2510507,134.21,134.2,20.0]
[1726157579250,0.2510507,134.21,134.18,20.0]
[1726157580626,0.2510507,134.21,134.15,15.0213095]
[1726157580951,23.902374,134.2,134.15,15.0213095]
[1726157581155,25.76556532,134.2,134.1,15.0731]
[1726157581356,0.12549,134.19,134.12,15.0213095]
[1726157581524,23.776884,134.18,134.12,15.0213095]
[1726157581727,1.86332649,134.18,134.12,15.0213095]
[1726157582343,1.98899843,134.19,134.12,15.0213095]
[1726157582532,23.902374,134.18,134.13,20.0]
[1726157582729,1.86356031,134.17,134.13,20.0]
[1726157583828,1.86356031,134.17,134.1,30.0944095]
[1726157583829,23.902374,134.16,134.1,30.0944095]
[1726157584059,23.902374,134.16,134.07,15.6153507]
[1726157584060,23.776884,134.14,134.07,15.6153507]
[1726157584233,2.11514055,134.13,134.08,15.0213095]
[1726157584563,23.776884,134.15,134.1,15.0213095]
[1726157586527,1.86393287,134.14,134.08,15.0213095]
[1726157586721,24.027864,134.13,134.08,15.0213095]
[1726157588051,24.027864,134.13,134.09,20.0]
[1726157599953,16.3442,134.16,134.09,20.0]
[1726157600973,16.3442,134.16,134.11,20.0]
[1726157604275,23.776884,134.15,134.11,20.0]
[1726157604457,23.776884,134.13,134.09,20.0]
[1726157604790,23.776884,134.15,134.09,20.0]
[1726157604954,0.12549,134.14,134.09,20.0]
[1726157605155,1.98945548,134.14,134.09,20.0]
[1726157605361,2.11494548,134.14,134.09,20.0]
[1726157605969,0.25098,134.14,134.09,20.0]
[1726157606684,2.11501213,134.14,134.09,20.0]
[1726157608166,0.25098,134.14,134.09,20.0]
[1726157609194,2.1150136,134.14,134.09,20.0]